Cogmind - Beta 11.1 @@@ ROGUE MODE // 2022.06.17 @ 18:54:59 Player: Benkyo Result: Heading to fleet! Performance ------------- Evolutions (9) 4500 Regions Visited (28) 5600 Robots Destroyed (509) 2545 Value Destroyed (26076) 26076 Prototype IDs (108) 2160 Alien Tech Used (9) 1800 Bonus (27022) 27022 TOTAL SCORE: 69703 Bonus ------- Triggered Max Security 2000 High Alert Combat Kills 7898 Follower Combat Kills 1878 Network Hubs Disabled 400 Aligned with FarCom 300 Destroyed Z-Imprinter 1000 Triggered Deep Caves Wall 500 Exposed GOLEM Chamber 500 Met Zhirov 300 Built Enhanced Grunts 300 A7 Reached Mainframe 300 Used Core Reset Matrix 3000 Scanned by Researcher 500 Pursued by Intercept 500 Integrated Exoskeleton 5000 Win 3000 Friendly Fire -354 Cogmind --------- Core Integrity 791/1600 Matter 300/300 Energy 401/450 System Corruption 3% Temperature Cool (5) Movement Walking (30) Location To Fleet Rendezvous Parts ------- > --- POWER (1) -------- Improved Quantum Reactor > --- PROPULSION (3) --- Sigix Exoskeleton > --- UTILITY (4) ------ Core Analyzer Graphene Brace AEGIS Remote Shield > --- WEAPON (3) ------- Sigix Sheargun Sigix Broadsword > --- INVENTORY (5) ---- High-powered Transdimensional Reconstructor Sigix Sheargun Sigix Sheargun Peak State ------------ > --- POWER ------------ Improved Quantum Reactor > --- PROPULSION ------- Sigix Exoskeleton > --- UTILITY ---------- Experimental Heat Sink Core Analyzer Graphene Brace AEGIS Remote Shield > --- WEAPON ----------- Sigix Sheargun Sigix Sheargun Sigix Sheargun > --- INVENTORY -------- High-powered Transdimensional Reconstructor Microwarp Drive Sigix Broadsword [Rating: 231] Favorites ----------- Power Assembled Flux Generator Engine Ion Engine Power Core Neutrino Core Reactor Assembled Flux Generator Propulsion Assembled Alloy Leg Treads Light Treads Leg Assembled Alloy Leg Wheel Compact Wheel Hover Unit Antigrav System Utility Improved Signal Interpreter Device GOLEM Unit Storage High-capacity Storage Unit Processor Improved Signal Interpreter Hackware Advanced Hacking Suite Protection Assembled Alloy Armor Artifact Phase Armor Weapon Assembled Focal Cannon Energy Gun Sigix Sheargun Energy Cannon Assembled Focal Cannon Ballistic Gun Assault Rifle Ballistic Cannon Assault Cannon Launcher Grenade Launcher Impact Weapon Heavy Flail Slashing Weapon Sigix Broadsword Build | -11 -10 -10 -10 -9 -8 -7 -7 -7 -7 -7 -6 -6 -5 -5 -5 -5 -4 -4 -4 -4 -4 -4 -3 -3 -2 -2 -2 -1 ------- Run | Scr Mat Min Exi Min Mat Fac Low Low Zio Dee Pro Fac Fac Upp Upp Zhi Pro Fac Ext Cet Arc Hub Res Qua Res Tes Sec Acc Slots Evolved 18 | . . . . . 4 2 . . . . . 2 2 . . . . 2 . . . . 2 . 2 . . 2 Power 2 | . . . . . . . . . . . . 1 . . . . . 1 . . . . . . . . . . Propulsion 4 | . . . . . . . . . . . . . . . . . . 1 . . . . 1 . 2 . . . Utility 10 | . . . . . 4 2 . . . . . 1 2 . . . . . . . . . . . . . . 1 Weapon 2 | . . . . . . . . . . . . . . . . . . . . . . . 1 . . . . 1 Parts Attached 423 | 6 9 2 1 3 37 31 6 2 5 43 1 16 16 2 8 8 . 6 11 3 4 3 14 42 56 21 56 11 Power 26 | 1 2 . . 1 4 1 2 . . 2 . . . . . 1 . 1 3 . . . 2 . 1 . 5 . Engine 7 | 1 2 . . 1 3 . . . . . . . . . . . . . . . . . . . . . . . Core 5 | . . . . . 1 1 2 . . . . . . . . . . . 1 . . . . . . . . . Reactor 14 | . . . . . . . . . . 2 . . . . . 1 . 1 2 . . . 2 . 1 . 5 . Propulsion 51 | 2 . . . 1 7 5 . 1 . 3 . . . . . 1 . 2 3 1 . . 4 5 6 . 10 . Treads 16 | 2 . . . 1 5 1 . 1 . . . . . . . . . 1 1 . . . 1 1 2 . . . Leg 23 | . . . . . . . . . . 1 . . . . . . . 1 1 . . . 2 4 4 . 10 . Wheel 10 | . . . . . 2 4 . . . 2 . . . . . . . . 1 1 . . . . . . . . Hover 2 | . . . . . . . . . . . . . . . . 1 . . . . . . 1 . . . . . Flight . | . . . . . . . . . . . . . . . . . . . . . . . . . . . . . Utility 281 | 1 5 1 1 . 17 14 2 1 2 20 1 16 13 2 7 6 . 3 5 2 3 2 8 37 49 21 36 6 Device 175 | . 1 . . . 7 12 1 1 1 7 1 8 5 . 4 2 . 2 2 . 1 1 4 30 34 19 28 4 Storage 11 | 1 3 . . . . . . . . 2 . . . . . . . . 1 . 1 . 1 . . . 2 . Processor 19 | . . . . . 2 . . . . 1 . . 1 . 2 1 . . . . . 1 1 . 3 . 5 2 Hackware 8 | . . . . . . 1 . . . . . 1 . . 1 1 . . 1 . . . . 1 2 . . . Protection 62 | . 1 1 1 . 8 1 1 . 1 10 . 7 7 2 . 2 . 1 1 2 1 . 2 4 6 2 1 . Artifact 6 | . . . . . . . . . . . . . . . . . . . . . . . . 2 4 . . . Weapon 65 | 2 2 1 . 1 9 11 2 . 3 18 . . 3 . 1 . . . . . 1 1 . . . . 5 5 Energy Gun 8 | . . . . . . . . . . 5 . . . . . . . . . . . . . . . . . 3 Energy Cannon 15 | . . . . . 2 2 1 . 2 5 . . 2 . 1 . . . . . . . . . . . . . Ballistic Gun 15 | 2 1 . . 1 1 3 . . . 2 . . . . . . . . . . 1 1 . . . . 3 . Ballistic Cannon 7 | . . . . . 4 1 . . . 2 . . . . . . . . . . . . . . . . . . Launcher 10 | . 1 1 . . 2 1 . . . 4 . . 1 . . . . . . . . . . . . . . . Special Weapon . | . . . . . . . . . . . . . . . . . . . . . . . . . . . . . Impact Weapon 6 | . . . . . . 4 1 . 1 . . . . . . . . . . . . . . . . . . . Slashing Weapon 4 | . . . . . . . . . . . . . . . . . . . . . . . . . . . 2 2 Piercing Weapon . | . . . . . . . . . . . . . . . . . . . . . . . . . . . . . Special Melee Weapon . | . . . . . . . . . . . . . . . . . . . . . . . . . . . . . Unidentified Prototypes 23 | . . . . . . . . . . 4 1 . . . . 5 . . 1 1 1 . . 1 . 1 8 . Corrupted Parts 1 | . . . . . . . . . . . . . . . . . . . . . . . . 1 . . . . System Corruption 10 | . . . . . . . . . . . . . . . . . . . . . . . . 10 . . . . Parts Lost 63 | . . . . 2 9 4 1 . . 7 . . 8 . 3 . . 2 1 . . 3 3 1 . 3 15 1 Power 9 | . . . . . 2 1 1 . . 1 . . . . . . . . . . . 1 1 . . . 2 . Propulsion 14 | . . . . 1 3 2 . . . 1 . . 1 . . . . . . . . . . . . . 6 . Utility 32 | . . . . . 4 . . . . 5 . . 6 . 3 . . 1 1 . . . 2 1 . 3 5 1 Weapon 8 | . . . . 1 . 1 . . . . . . 1 . . . . 1 . . . 2 . . . . 2 . Highest Loss Streak 5 | . . . . 2 3 3 1 . . 5 . . 4 . 3 . . 1 1 . . 2 2 1 . 3 4 1 To Critical Strikes 2 | . . . . . . . . . . . . . 1 . . . . . . . . . . . . . 1 . Average Slot Usage (%) 85 | . 96 100 100 99 92 91 84 84 91 82 69 65 70 75 81 70 88 87 88 89 88 88 87 87 83 85 85 76 Engine 2 | . 13 14 14 14 5 2 . . . . . . . . . . . . . . . . . . . . . . Core 1 | . . . . . 3 4 7 7 7 3 . . . . . . . . 1 . . . . . . . . . Reactor 4 | . . . . . . . . . . 3 7 6 5 5 5 4 5 9 8 10 10 10 8 9 8 8 9 9 Treads 6 | . 28 28 28 28 15 4 7 7 7 3 . . . . . . . 2 3 . . . 1 . 4 4 2 . Leg 5 | . . . . . . . . . . . . . 10 10 11 10 11 11 10 10 10 10 10 18 17 17 19 9 Wheel 3 | . . . . . 2 9 7 7 7 6 7 5 . . . . . . . 5 5 5 4 . . . . . Device 13 | . 6 . . . 9 16 22 23 22 9 15 12 12 13 14 15 23 20 14 10 13 14 15 15 15 14 20 19 Storage 9 | . 14 14 14 14 9 7 7 7 7 8 15 13 11 11 8 5 5 5 9 10 9 10 9 9 8 8 8 . Processor 10 | . . . . . 16 15 15 15 15 19 7 6 4 5 9 13 11 10 10 10 10 10 9 7 4 8 9 15 Hackware 2 | . . . . . . 5 . . . . . 5 2 . 1 4 5 5 9 10 10 10 5 2 1 2 . . Protection 8 | . 4 14 14 14 12 6 7 7 7 11 . . 8 14 15 7 11 10 6 9 6 5 5 5 5 5 2 . Energy Cannon 8 | . . . . . 7 4 7 7 7 6 15 13 10 11 11 2 11 10 10 10 9 9 11 14 13 13 10 . Ballistic Gun 3 | . 27 18 14 21 3 4 . . . 1 . . . . . . . . . . . . . . . . . . Launcher 1 | . . 9 14 6 . . . . . 2 . . . . . . . . . . . . . . . . . . Naked Turns . | . . . . . . . . . . . . . . . . . . . . . . . . . . . . . Heaviest Build 205 | 12 52 53 53 53 81 79 95 95 95 97 48 86 101 93 93 87 85 104 109 111 111 111 161 193 202 205 169 54 Greatest Support 169 | 40 40 40 40 40 43 32 16 16 16 28 28 28 60 60 60 80 80 80 60 60 60 60 80 120 120 116 169 60 Greatest Overweight (x) 25 | . 1 1 1 1 4 4 5 5 5 6 1 25 25 3 1 1 1 1 3 1 1 1 2 3 6 1 1 . Average Overweight (x) 1 | . . 1 1 1 1 3 4 5 5 2 1 2 1 1 1 . 1 1 1 1 1 1 1 1 1 1 . . Largest Inventory Capacity 40 | 8 20 20 20 20 20 20 20 20 20 40 40 40 40 40 40 5 5 5 10 10 10 10 20 20 20 20 20 10 Average Capacity 21 | 7 13 20 20 20 20 20 20 20 20 26 40 40 40 40 23 5 5 5 9 10 9 10 18 20 20 20 19 5 Most Carried 40 | 7 20 20 20 20 20 20 20 20 20 40 40 40 40 36 35 5 5 5 10 10 10 10 20 20 20 20 20 8 Average Carried 20 | 4 12 19 19 19 19 19 16 19 19 21 39 39 38 34 20 4 5 5 9 9 9 9 13 19 19 18 18 4 Final Capacity 40 | 8 20 20 20 20 20 20 20 20 20 40 40 40 40 40 5 5 5 5 10 10 10 10 20 20 20 20 10 5 Final Carried 40 | 7 20 20 20 20 20 20 20 20 20 40 40 40 34 35 5 5 5 5 10 10 10 9 20 20 20 17 9 3 Class Distribution -------------------- 21% | Mutant 20% | Generator-Golem 19% | Hauler-Golem 12% | Scavenger-Skirmisher 7% | Scavenger-Mutant 6% | Golem 3% | Scavenger-Assassin Dominant Class ---------------- Mutant | -10/Materials Mutant | -10/Mines Mutant | -10/Exiles Mutant | -9/Mines Mutant | -8/Materials Scavenger-Assassin | -7/Factory Scavenger-Skirmisher | -7/Lower Caves Scavenger-Skirmisher | -7/Lower Caves Scavenger-Mutant | -7/Zion Scavenger-Mutant | -7/Deep Caves Hauler-Golem | -6/Proximity Caves Hauler-Golem | -6/Factory Hauler-Golem | -5/Factory Hauler-Golem | -5/Upper Caves Hauler-Golem | -5/Upper Caves Golem | -5/Zhirov Golem | -4/Proximity Caves Generator-Golem | -4/Factory Generator-Golem | -4/Extension Generator-Golem | -4/Cetus Generator-Golem | -4/Archives Generator-Golem | -4/Hub_04(d) Generator-Golem | -3/Research Generator-Golem | -3/Quarantine Generator-Golem | -2/Research Generator-Tank | -2/Testing Generator-Golem | -2/Section 7 Alien-Sigix | -1/Access Resources | -11 -10 -10 -10 -9 -8 -7 -7 -7 -7 -7 -6 -6 -5 -5 -5 -5 -4 -4 -4 -4 -4 -4 -3 -3 -2 -2 -2 -1 ----------- Run | Scr Mat Min Exi Min Mat Fac Low Low Zio Dee Pro Fac Fac Upp Upp Zhi Pro Fac Ext Cet Arc Hub Res Qua Res Tes Sec Acc Matter Collected 6565 | 290 345 84 11 140 862 610 67 20 38 626 20 100 315 103 163 . 243 45 115 40 20 40 114 422 627 131 844 130 Remotely 240 | . 240 . . . . . . . . . . . . . . . . . . . . . . . . . . . Salvage Created 31069 | 122 364 165 . 267 2015 993 716 270 . 2029 330 866 2539 423 1254 . 757 1177 1051 241 333 1145 1145 1878 2473 703 4341 3472 Parts 1239 | 5 28 18 . 16 105 32 22 4 . 23 12 51 103 10 13 . 23 46 47 13 19 59 62 103 129 29 167 100 Haulers Intercepted 8 | . 1 . . . 3 1 . . . . . . 1 . . . . . . . . . . . . . . 2 Recyclers Shooed 10 | . . . . . 2 2 . . . . . . . . . . . 2 1 . . . 1 . 2 . . . Parts Field Recycled . | . . . . . . . . . . . . . . . . . . . . . . . . . . . . . Retrieved Matter . | . . . . . . . . . . . . . . . . . . . . . . . . . . . . . Parts Self-Destructed 72 | . . . . . . . 18 7 . . 12 . . 10 2 . 23 . . . . . . . . . . . Prevented . | . . . . . . . . . . . . . . . . . . . . . . . . . . . . . Kills | -11 -10 -10 -10 -9 -8 -7 -7 -7 -7 -7 -6 -6 -5 -5 -5 -5 -4 -4 -4 -4 -4 -4 -3 -3 -2 -2 -2 -1 ------- Run | Scr Mat Min Exi Min Mat Fac Low Low Zio Dee Pro Fac Fac Upp Upp Zhi Pro Fac Ext Cet Arc Hub Res Qua Res Tes Sec Acc Combat Hostiles Destroyed 440 | . 12 8 . 5 32 14 18 7 . 56 8 13 40 7 12 . 10 11 11 4 2 7 13 24 32 7 51 36 Melee 29 | . . . . . . 1 . . . . . . . . . . . . . . . . . . . . . 28 Guns 39 | . 9 . . 1 5 1 . . . 9 . . . . . . . . . . . . . . . . 6 8 Cannons 268 | . . . . . 22 7 2 4 . 1 8 13 27 7 12 . 10 11 11 4 2 6 13 24 32 7 45 . AOE 88 | . 3 8 . 4 5 4 10 3 . 38 . . 12 . . . . . . . . 1 . . . . . . Classes Destroyed 28 | 2 4 . . 3 3 2 1 . . 4 . . 2 1 1 . . . . . . . . 1 . . 2 2 Worker 25 | . . . . 1 2 5 . . . . . . 1 . . . . . . . . 11 2 . . . . 3 Builder 16 | . . . . 1 4 1 . . . . . 1 . . . . . . 1 . . 3 2 . . . . 3 Tunneler 7 | 1 . 1 . . . 3 . . . . . . 1 . . . . . . . . 1 . . . . . . Hauler 8 | . 1 . . . 3 1 . . . . . . 1 . . . . . . . . . . . . . . 2 Recycler 21 | 1 . 1 . 1 5 3 . . . . . 1 1 . . . . 3 2 . . 2 . . . 1 . . Minesweeper 1 | . . . . . . . . . . . . . . 1 . . . . . . . . . . . . . . Mechanic 4 | . . . . . 1 1 . . . . . 1 . . . . . . . . . . . . 1 . . . Operator 10 | . . . . . 2 . . . . . . 1 . . . . . . 1 . 4 . . 1 1 . . . Watcher 33 | . 1 . . . 3 2 . . . . . 3 3 . . . . 1 2 1 . 2 3 3 3 1 3 2 Swarmer 50 | . 5 6 . . 4 4 3 . . . 4 4 4 1 . . . . 3 2 . 1 . . 5 . 4 . Grunt 174 | . 7 2 . 4 22 5 6 6 . . 3 3 22 6 . . 7 6 3 . . . 7 14 12 2 14 23 Brawler 16 | . . . . 1 1 . 1 . . . . . 3 . . . 1 2 . . . . 1 1 . . 2 3 Duelist 12 | . . . . . . 1 . 1 . . . . 1 . . . . . . . . . 1 1 . 2 2 3 Protector 5 | . . . . . . . . . . . . . . . . . . . . . . . . 1 . . 1 3 Researcher 3 | . . . . . . . . . . . . . . . . . . . . . . . . . . . 3 . Sentry 27 | . . . . . 5 . 1 . . . . 3 . . . . . 1 5 . 2 2 1 . 2 . 5 . Specialist 2 | . . . . . . . . . . . . . 2 . . . . . . . . . . . . . . . Hunter 22 | . . . . . . . . . . . . . 2 . 1 . 2 . . 1 . 3 . . 3 . 9 1 Programmer 48 | . . . . . . 4 . . . . 1 3 6 . . . . 2 . . . 1 3 7 10 2 8 1 Heavy 1 | . . . . . . . . . . . . . . . . . . . . . . . . . . . . 1 Cetus Guard 1 | . . . . . . . . . . . . . . . . . . . . 1 . . . . . . . . Enhanced Grunt 1 | . . . . . . . . . . . . . . . . . . . . . . 1 . . . . . . Tracker 2 | . . . . . . . . . . . . . . . . . . . . . . . . . . . 2 . Combat Programmer 2 | . . . . . . . . . . . . . . . . . . . . . . . . . . . 2 . Investigator 1 | . . . . . . . . . . . . . . . . . . . . . . . . . . . . 1 Striker 1 | . . . . . . . . . . . . . . . . . . . . . . . . . . . . 1 Executioner 2 | . . . . . . . . . . . . . . . . . . . . . . . . . . . 2 . Protovariant H 1 | . . . . . . . . . . . . . . . . . . . . . . . . . . 1 . . Z-Technician 1 | . . . . . . . . . . 1 . . . . . . . . . . . . . . . . . . Z-Light 4 | . . . . . . . . . . 4 . . . . . . . . . . . . . . . . . . Decomposer 1 | . . . . . . . . . . . . . . . 1 . . . . . . . . . . . . . Packrat 2 | . . . . . . . . . . . . . . . 2 . . . . . . . . . . . . . Master Thief 1 | . . . . . . . . . . . . . . . 1 . . . . . . . . . . . . . Assembler 2 | . . . . . . . . . . 2 . . . . . . . . . . . . . . . . . . Assembled 38 | . . . . . . . . . . 38 . . . . . . . . . . . . . . . . . . Golem 24 | . . . . . . . . . . 14 . . . . 10 . . . . . . . . . . . . . Thug 2 | . . . . . . . 2 . . . . . . . . . . . . . . . . . . . . . Savage 4 | . . . . . . . 4 . . . . . . . . . . . . . . . . . . . . . Butcher 1 | . . . . . . . 1 . . . . . . . . . . . . . . . . . . . . . Mutant 1 | . . . . . . . 1 . . . . . . . . . . . . . . . . . . . . . Best Kill Streak 38 | 2 3 4 . 3 5 8 8 4 . 38 4 4 7 3 4 . 4 6 5 4 3 15 7 8 6 5 11 26 Combat Bots Only 36 | . 3 3 . 3 5 4 8 4 . 36 4 3 7 3 4 . 4 5 3 3 1 3 5 8 5 4 7 18 Max Kills in Single Turn 35 | 1 2 3 . 2 3 2 3 2 . 35 1 1 3 1 1 . 1 1 2 1 1 14 2 2 1 2 2 2 Gunslinging . | . . . . . . . . . . . . . . . . . . . . . . . . . . . . . Exploded 34 | . 2 3 . 2 3 2 3 2 . 34 . . 3 . . . . . . . . 1 . . . . . . Melee 1 | . . . . . . 1 . . . . . . . . . . . . . . . . . . . . . 1 Uniques/NPCs Destroyed 1 | . . . . . . . . . . 1 . . . . . . . . . . . . . . . . . . Z-Imprinter (-7/Deep Caves) Combat | -11 -10 -10 -10 -9 -8 -7 -7 -7 -7 -7 -6 -6 -5 -5 -5 -5 -4 -4 -4 -4 -4 -4 -3 -3 -2 -2 -2 -1 -------- Run | Scr Mat Min Exi Min Mat Fac Low Low Zio Dee Pro Fac Fac Upp Upp Zhi Pro Fac Ext Cet Arc Hub Res Qua Res Tes Sec Acc Damage Taken 28954 | . 472 125 . 168 1892 816 570 325 . 1029 392 754 4146 292 170 . 391 889 480 65 82 1162 1294 1442 1777 1841 5325 3055 Core 3891 | . 136 15 . 23 135 67 62 . . 260 42 76 425 12 17 . 51 30 . . . 51 153 344 410 314 459 809 Absorbed by Shields 3677 | . . . . . . . . . . . . . . . . . . . 90 . . . . . . 319 235 3033 Redirected to Core 862 | . . . . . . . . . . . . . . . . . . . . . . . . 241 358 263 . . Redirected to Shielding 183 | . . . . . . . . . . 171 . . . 5 7 . . . . . . . . . . . . . Regen/Repaired (Parts) 232 | . 56 . . . 77 . . . . . . . . . . . . 17 . . . . . . . . . 82 Core Remaining (%) 59 | 100 . . . 30 75 . . . . . 38 91 . . . . 49 . . . . 92 . 61 . . 12 49 Volleys Fired 1182 | 5 42 6 . 16 127 44 18 8 . 128 16 55 102 19 51 . 23 36 51 11 24 27 38 61 65 32 133 44 Largest 3 | 2 2 1 . 2 2 2 2 1 . 2 2 2 2 2 2 . 2 2 2 2 2 2 3 3 3 3 3 3 Hottest 300 | 40 40 30 . 40 119 119 100 100 . 133 50 50 85 50 85 . 50 50 50 50 50 60 75 75 75 75 200 300 Shots Fired 2296 | 10 82 6 . 26 232 80 21 8 . 170 31 91 158 39 88 . 47 66 99 22 34 53 103 155 184 79 310 102 Gun 423 | 10 80 . . 20 61 26 3 . . 78 . . . . . . . . . . . 1 . . . . 42 102 Cannon 1833 | . . . . . 164 51 18 8 . 81 31 91 153 39 88 . 47 66 99 22 34 52 103 155 184 79 268 . Launcher 40 | . 2 6 . 6 7 3 . . . 11 . . 5 . . . . . . . . . . . . . . . Special . | . . . . . . . . . . . . . . . . . . . . . . . . . . . . . Kinetic 325 | 10 80 . . 20 139 36 3 . . 11 . . . . . . . . . . . 1 . . . . 25 . Thermal 1692 | . . . . . 86 41 18 8 . 32 31 91 150 39 87 . 47 66 99 22 34 52 103 155 184 79 268 . Explosive 40 | . 2 6 . 6 7 3 . . . 11 . . 5 . . . . . . . . . . . . . . . Electromagnetic 56 | . . . . . . . . . . 52 . . 3 . 1 . . . . . . . . . . . . . Slashing 119 | . . . . . . . . . . . . . . . . . . . . . . . . . . . 17 102 Phasic 64 | . . . . . . . . . . 64 . . . . . . . . . . . . . . . . . . Robot Hit Streak 36 | 5 9 5 . 9 21 36 8 4 . 30 7 18 27 22 24 . 36 27 15 22 14 5 27 34 18 14 24 6 Robot Miss Streak 4 | 1 3 . . 2 3 1 2 1 . 4 2 2 2 1 3 . 1 1 2 2 1 3 3 1 2 2 2 4 Penetration Max 1 | . . . . . . . . . . . . . . . . . . . . . . . . . . . 1 1 Secondary Targets 3 | . 1 . . . . . . . . . . . . . . . . . . . . . . . . . . 2 Max Gunslinging Chain 1 | . 1 . . . . . . . . . . . . . . . . . . . . . . . . . . 1 Shots Hit Robots 1661 | 7 50 3 . 15 177 84 14 6 . 120 19 50 114 32 70 . 38 53 66 15 28 25 70 101 126 53 196 129 Core Hits 983 | 3 21 12 . 14 80 24 22 7 . 169 6 21 71 9 57 . 17 25 29 8 11 38 34 49 55 22 114 65 Critical Kills 14 | . . . . . . 1 6 . . . . . . . . . . . . . . . . . . . 7 . Critical Parts Destroyed 18 | . . . . . 1 6 . . . . . . . . . . . . . . . . . . . . 11 . Critical Strikes 48 | . . . . . 3 7 6 . . 4 . . . . . . . . . . . . . . . . 19 9 Meltdown 6 | . . . . . . . 6 . . . . . . . . . . . . . . . . . . . . . Destroy 20 | . . . . . 1 1 . . . . . . . . . . . . . . . . . . . . 18 . Blast 2 | . . . . . 2 . . . . . . . . . . . . . . . . . . . . . . . Corrupt 1 | . . . . . . . . . . 1 . . . . . . . . . . . . . . . . . . Smash 6 | . . . . . . 6 . . . . . . . . . . . . . . . . . . . . . . Sever 10 | . . . . . . . . . . . . . . . . . . . . . . . . . . . 1 9 Intensify 3 | . . . . . . . . . . 3 . . . . . . . . . . . . . . . . . . Melee Attacks 141 | . . . . . . 39 3 . 1 . . . . . . . . . . . . . . . . . 6 92 Impact 43 | . . . . . . 39 3 . 1 . . . . . . . . . . . . . . . . . . . Slashing 98 | . . . . . . . . . . . . . . . . . . . . . . . . . . . 6 92 Piercing . | . . . . . . . . . . . . . . . . . . . . . . . . . . . . . Sneak Attacks 14 | . . . . . . 12 . . . . . . . . . . . . . . . . . . . . 2 . Combat Hostiles . | . . . . . . . . . . . . . . . . . . . . . . . . . . . . . Follow-up Attacks . | . . . . . . . . . . . . . . . . . . . . . . . . . . . . . Damage Inflicted 88987 | 86 777 468 . 457 4837 3588 2578 1517 . 6499 982 2415 6965 1422 3212 . 1763 2668 2930 669 1263 2636 3326 5115 6397 2424 9967 14026 Guns 8468 | 86 623 . . 167 653 336 34 . . 1518 . . . . . . . . . . . . . . . . 901 4150 Cannons 57208 | . . . . . 3318 1158 1172 758 . 1656 982 2415 5078 1422 3143 . 1763 2668 2930 669 1263 1310 3326 4987 6397 2424 8369 . Explosions 11045 | . 154 468 . 290 866 388 1372 759 . 3325 . . 1858 . 69 . . . . . . 1326 . 128 . . . 42 Melee 11947 | . . . . . . 1706 . . . . . . . . . . . . . . . . . . . . 624 9617 Ramming 319 | . . . . . . . . . . . . . 29 . . . . . . . . . . . . . 73 217 Kinetic 4074 | 86 623 . . 167 2166 550 34 . . 97 . . . . . . . . . . . . . . . . 351 . Thermal 56961 | . . . . . 1805 944 2544 1517 . 738 982 2415 5305 1422 3143 . 1763 2668 2930 669 1263 1350 3326 4987 6397 2424 8369 . Explosive 6432 | . 154 468 . 290 866 388 . . . 3249 . . 1017 . . . . . . . . . . . . . . . Electromagnetic 3168 | . . . . . . . . . . 1029 . . 614 . 69 . . . . . . 1286 . 128 . . . 42 Impact 1706 | . . . . . . 1706 . . . . . . . . . . . . . . . . . . . . . . Slashing 14941 | . . . . . . . . . . . . . . . . . . . . . . . . . . . 1174 13767 Piercing . | . . . . . . . . . . . . . . . . . . . . . . . . . . . . . Phasic 1386 | . . . . . . . . . . 1386 . . . . . . . . . . . . . . . . . . Highest Corruption 10 | . . . . . 1 . . . . . . 1 7 6 8 8 8 2 . . . 4 1 10 2 2 8 3 Average Corruption 5 | . . . . . 1 . . . . . . 1 4 6 6 8 8 1 . . . 1 1 4 1 1 5 1 Corruption Purged 19 | . . . . . 2 . . . . . . 1 4 . . . . 2 . . . . 1 6 3 . . . Corruption Blocked . | . . . . . . . . . . . . . . . . . . . . . . . . . . . . . Effects 252 | . . . . . 1 . . . . . . 3 19 44 47 18 41 3 . . . 1 . 19 . 8 48 . Message Errors 56 | . . . . . 1 . . . . . . 1 3 8 10 6 10 2 . . . . . 5 . 1 9 . Matter Fused 69 | . . . . . . . . . . . . 1 6 12 11 5 12 1 . . . . . 6 . 1 14 . Heat Flow Errors 40 | . . . . . . . . . . . . . 1 8 7 5 7 . . . . . . 3 . 2 7 . Energy Discharges 32 | . . . . . . . . . . . . . 2 12 4 2 3 . . . . . . . . 1 8 . Parts Rejected 2 | . . . . . . . . . . . . . . . . . . . . . . . . . . . 2 . Data Loss (minor) 24 | . . . . . . . . . . . . 1 2 1 8 . 4 . . . . 1 . 2 . 2 3 . Data Loss (major) 7 | . . . . . . . . . . . . . . 2 1 . 1 . . . . . . 2 . . 1 . Misfires 9 | . . . . . . . . . . . . . 2 1 1 . 2 . . . . . . 1 . . 2 . Alerts 7 | . . . . . . . . . . . . . 2 . 3 . 1 . . . . . . . . 1 . . Weapon Failures 6 | . . . . . . . . . . . . . 1 . 2 . 1 . . . . . . . . . 2 . Overload Shots . | . . . . . . . . . . . . . . . . . . . . . . . . . . . . . Overflow Damage 5120 | . 12 29 . 27 140 969 104 186 . 185 159 223 273 147 85 . 63 89 93 15 110 172 119 170 491 61 495 703 Projectiles 2719 | . . . . . 44 40 92 186 . . 159 223 259 147 85 . 63 89 93 15 110 129 119 87 491 61 227 . Explosions 564 | . 12 29 . 27 96 61 12 . . 185 . . 14 . . . . . . . . 43 . 83 . . . 2 Melee 1837 | . . . . . . 868 . . . . . . . . . . . . . . . . . . . . 268 701 Knockbacks 29 | . . . . . 20 8 . . . . . . . . . . . . . . . . . . . . 1 . Impact 7 | . . . . . . 6 . . . . . . . . . . . . . . . . . . . . 1 . Kinetic 17 | . . . . . 16 1 . . . . . . . . . . . . . . . . . . . . . . Secondary 5 | . . . . . 4 1 . . . . . . . . . . . . . . . . . . . . . . Self-Inflicted Damage 954 | . 40 39 . 58 . . 166 86 . . . . 307 . 30 . . . . . . 213 . . . . . 15 Shots 19 | . 1 1 . 2 . . 3 2 . . . . 5 . 1 . . . . . . 3 . . . . . 1 Rammed . | . . . . . . . . . . . . . . . . . . . . . . . . . . . . . Targets Rammed 13 | . . . . . . . . . . . . . 1 . . . . . . . . . . . . . 1 11 Kicked 13 | . . . . . . . . . . . . . 1 . . . . . . . . . . . . . 1 11 Crushed . | . . . . . . . . . . . . . . . . . . . . . . . . . . . . . Highest Temperature 324 | . 5 12 . 10 282 311 47 62 . 324 105 10 197 249 173 246 257 3 . . . . 28 153 22 90 258 48 Average Temperature 66 | . 2 8 . 6 78 66 21 32 . 76 36 3 69 114 79 109 100 3 . . . . 12 25 8 25 113 19 Received Heat Transfer 5521 | . 165 27 . 63 1026 252 117 144 . 180 57 123 1047 135 . . 57 286 114 . . 18 198 331 225 163 281 512 Effects 10 | . . . . . 4 . . . . . . . . . . 6 . . . . . . . . . . . . Interference 10 | . . . . . 4 . . . . . . . . . . 6 . . . . . . . . . . . . Siege Activations . | . . . . . . . . . . . . . . . . . . . . . . . . . . . . . Robots Corrupted 8 | . . . . . . . . . . 8 . . . . . . . . . . . . . . . . . . Combat Hostiles 8 | . . . . . . . . . . 8 . . . . . . . . . . . . . . . . . . Parts Fried 15 | . . . . . . 11 . . . . . . 2 . . . . . . . . 2 . . . . . . Impact Corruptions 31 | . . . . . . 30 . . . . . . . . . . . . . . . . . . . . 1 . Robots Melted 7 | . . . . . . . 6 . . . . . 1 . . . . . . . . . . . . . . . Combat Hostiles 7 | . . . . . . . 6 . . . . . 1 . . . . . . . . . . . . . . . Parts Melted 45 | . . . . . 2 1 6 1 . . . 2 7 1 . . . . 2 . 2 4 3 1 7 2 4 . Heat Transferred 34791 | . . . . . 2553 1221 2874 1280 . 559 500 1275 2950 800 1725 . 950 1425 1550 375 700 675 1850 2560 3300 1375 4294 . Parts Sabotaged 3 | . . . . . . . . . . . . . 1 . . . . . . . . . . . . . 2 . Parts Stolen 9 | . . . . . . . 3 . . . . . . . 6 . . . . . . . . . . . . . Parts Stripped . | . . . . . . . . . . . . . . . . . . . . . . . . . . . . . Power Chain Reactions 3 | . . . . . . . . . . 1 . . . . . . . . . . . 2 . . . . . . Missiles Intercepted . | . . . . . . . . . . . . . . . . . . . . . . . . . . . . . Latent Energy Used 395 | . . . . . . . . . . . . . 322 . 73 . . . . . . . . . . . . . LE Corruption 8 | . . . . . . . . . . . . . 6 . 2 . . . . . . . . . . . . . Alert | -11 -10 -10 -10 -9 -8 -7 -7 -7 -7 -7 -6 -6 -5 -5 -5 -5 -4 -4 -4 -4 -4 -4 -3 -3 -2 -2 -2 -1 ------- Run | Scr Mat Min Exi Min Mat Fac Low Low Zio Dee Pro Fac Fac Upp Upp Zhi Pro Fac Ext Cet Arc Hub Res Qua Res Tes Sec Acc Peak Influence 2669 | 10 184 226 . 146 530 361 . . . . . 302 1171 . . . . 226 646 550 477 1231 938 917 1058 811 1723 2669 Initial 1100 | . 6 49 . . 3 240 . . . . . . 107 . . . . . 70 298 220 96 645 527 515 591 404 1100 Average 413 | 4 53 49 . 51 148 131 . . . . . 176 536 . . . . 132 270 468 401 322 732 690 711 659 1007 1825 Maximum Alert Level 5 | . . 1 . . 2 1 . . . . . 1 4 . . . . 1 2 2 2 4 3 3 3 3 5 5 Low Security (%) 45 | 100 100 95 . 100 62 84 . . . . . 62 28 . . . . 96 52 . . 28 . . . . . . Level 1 14 | . . 4 . . 32 15 . . . . . 37 19 . . . . 3 28 36 35 40 . . . . . . Level 2 21 | . . . . . 4 . . . . . . . 16 . . . . . 19 63 64 25 62 61 48 70 44 . Level 3 10 | . . . . . . . . . . . . . 27 . . . . . . . . 6 37 38 51 29 8 . Level 4 4 | . . . . . . . . . . . . . 7 . . . . . . . . . . . . . 40 38 Level 5 . | . . . . . . . . . . . . . . . . . . . . . . . . . . . 2 . High Security . | . . . . . . . . . . . . . . . . . . . . . . . . . . . . . Max Security 2 | . . . . . . . . . . . . . . . . . . . . . . . . . . . 5 61 Squads Dispatched 118 | . 2 . . . 5 5 . . . . . 5 10 . . . . 1 1 . . 4 5 5 5 4 26 40 Investigation 5 | . 1 . . . . 1 . . . . . . 1 . . . . . 1 . . . . . . . 1 . Extermination 26 | . . . . . . 4 . . . . . 3 3 . . . . 1 . . . 1 2 2 4 2 4 . Reinforcement 26 | . 1 . . . 4 . . . . . . 2 5 . . . . . . . . 3 . . 1 . 4 6 Assault 50 | . . . . . 1 . . . . . . . 1 . . . . . . . . . . 3 . 2 12 31 Garrison 8 | . . . . . . . . . . . . . . . . . . . . . . . 3 . . . 2 3 Intercept 3 | . . . . . . . . . . . . . . . . . . . . . . . . . . . 3 . Searches Triggered . | . . . . . . . . . . . . . . . . . . . . . . . . . . . . . Construction Impeded 2 | . . . . . . . . . . . . . . . . . . . . . . 1 . . . . . 1 Haulers Reinforced 4 | . . . . . . . . . . . . . 2 . . . . . . . . . . . . . . 2 Active Scanning Responses . | . . . . . . . . . . . . . . . . . . . . . . . . . . . . . Cargo Convoy Interrupts . | . . . . . . . . . . . . . . . . . . . . . . . . . . . . . Stealth | -11 -10 -10 -10 -9 -8 -7 -7 -7 -7 -7 -6 -6 -5 -5 -5 -5 -4 -4 -4 -4 -4 -4 -3 -3 -2 -2 -2 -1 --------- Run | Scr Mat Min Exi Min Mat Fac Low Low Zio Dee Pro Fac Fac Upp Upp Zhi Pro Fac Ext Cet Arc Hub Res Qua Res Tes Sec Acc Distress Signals 16 | . . . . 1 . 1 . . . . . . . . . . . . 2 1 . 2 1 . 1 1 5 1 Communications Jammed 14 | . . . . . . . . . . . . . . . . . . . . . . . . . . . 14 . Distress Signals 14 | . . . . . . . . . . . . . . . . . . . . . . . . . . . 14 . Times Spotted 728 | . 18 8 . 5 42 25 18 7 . 68 8 19 52 8 17 . 10 13 26 11 16 24 18 34 41 17 117 106 Peak Tracking Total 48 | . 3 3 . 3 6 4 7 3 . 37 4 4 8 3 7 . 4 4 6 5 1 5 5 10 6 7 24 48 Tactical Retreats 30 | . 1 . . 1 3 1 . . . . . 2 6 . 1 . . . 2 . . 1 1 3 . 1 2 5 Traps | -11 -10 -10 -10 -9 -8 -7 -7 -7 -7 -7 -6 -6 -5 -5 -5 -5 -4 -4 -4 -4 -4 -4 -3 -3 -2 -2 -2 -1 ------- Run | Scr Mat Min Exi Min Mat Fac Low Low Zio Dee Pro Fac Fac Upp Upp Zhi Pro Fac Ext Cet Arc Hub Res Qua Res Tes Sec Acc Traps Triggered 25 | . . . . . 2 . . . . . . 2 1 . . . . . 7 . . 1 2 1 1 3 4 1 Indirectly 2 | . . . . . . . . . . . . . . . . . . . . . . 1 . 1 . . . . Trap Hack Attempts . | . . . . . . . . . . . . . . . . . . . . . . . . . . . . . Triggered . | . . . . . . . . . . . . . . . . . . . . . . . . . . . . . Disarmed . | . . . . . . . . . . . . . . . . . . . . . . . . . . . . . Reprogrammed 4 | . . . . . . . . . . . . . . . . . . . . . . 4 . . . . . . Reused . | . . . . . . . . . . . . . . . . . . . . . . . . . . . . . Traps Extracted . | . . . . . . . . . . . . . . . . . . . . . . . . . . . . . Installed . | . . . . . . . . . . . . . . . . . . . . . . . . . . . . . Triggered . | . . . . . . . . . . . . . . . . . . . . . . . . . . . . . Machines | -11 -10 -10 -10 -9 -8 -7 -7 -7 -7 -7 -6 -6 -5 -5 -5 -5 -4 -4 -4 -4 -4 -4 -3 -3 -2 -2 -2 -1 ---------- Run | Scr Mat Min Exi Min Mat Fac Low Low Zio Dee Pro Fac Fac Upp Upp Zhi Pro Fac Ext Cet Arc Hub Res Qua Res Tes Sec Acc Machines Disabled 82 | . 1 . . 2 4 . . . . 5 1 3 10 . . . . 1 1 1 3 14 1 8 5 5 11 6 Max in Single Turn 10 | . 1 . . 1 1 . . . . 1 1 1 3 . . . . 1 1 1 1 10 1 2 1 1 1 1 Garrison Access 3 | . . . . . . . . . . . . . 1 . . . . . . . . . . 1 . . 1 . Network Hub 2 | . . . . . . . . . . . . . . . . . . . . . . 2 . . . . . . Machines Sabotaged . | . . . . . . . . . . . . . . . . . . . . . . . . . . . . . Garrisons Compromised . | . . . . . . . . . . . . . . . . . . . . . . . . . . . . . Overloaded Fab Kills . | . . . . . . . . . . . . . . . . . . . . . . . . . . . . . Hacking | -11 -10 -10 -10 -9 -8 -7 -7 -7 -7 -7 -6 -6 -5 -5 -5 -5 -4 -4 -4 -4 -4 -4 -3 -3 -2 -2 -2 -1 --------- Run | Scr Mat Min Exi Min Mat Fac Low Low Zio Dee Pro Fac Fac Upp Upp Zhi Pro Fac Ext Cet Arc Hub Res Qua Res Tes Sec Acc Machines Accessed 99 | . 9 1 2 . 7 16 . 1 . . 1 12 4 . . 5 . 3 9 1 . 7 2 9 1 2 6 1 Terminals 62 | . 6 . . . 4 10 . . . . . 7 2 . . . . 2 9 1 . 6 1 8 1 1 4 . Fabricators 6 | . . . . . . 2 . . . . . 1 1 . . . . . . . . . 1 . . . . 1 Repair Stations 3 | . 1 . . . 1 . . . . . . . . . . . . 1 . . . . . . . . . . Recycling Units 6 | . 2 . . . 1 1 . . . . . 2 . . . . . . . . . . . . . . . . Scanalyzers 6 | . . . . . 1 2 . . . . . 1 . . . . . . . . . . . . . 1 1 . Garrison Access 6 | . . . . . . 1 . . . . . 1 1 . . . . . . . . 1 . 1 . . 1 . Total Hacks 319 | . 25 1 5 . 26 46 . 1 . . 1 29 8 . . 18 . 15 26 1 . 19 9 62 3 7 13 4 Successful 180 | . 14 1 5 . 17 30 . 1 . . 1 18 5 . . 18 . 9 14 1 . 14 3 23 . . 5 1 Failed 137 | . 10 . . . 8 16 . . . . . 11 3 . . . . 6 12 . . 5 6 39 3 7 8 3 Catastrophic 30 | . 2 . . . 1 4 . . . . . 2 . . . . . . . . . 2 . 10 2 3 2 2 Database Lockouts 2 | . 1 . . . 1 . . . . . . . . . . . . . . . . . . . . . . . Manual 139 | . 15 . 1 . 12 19 . . 6 . . 13 6 . . . . 10 10 1 . 7 2 21 2 7 7 . Terminals 219 | . 18 . . . 11 29 . . . . . 16 5 . . . . 13 26 1 . 18 6 59 3 4 10 . Fabricators 13 | . . . . . . 3 . . . . . 1 2 . . . . . . . . . 3 . . . . 4 Repair Stations 7 | . 2 . . . 3 . . . . . . . . . . . . 2 . . . . . . . . . . Recycling Units 24 | . 5 . . . 8 3 . . . . . 8 . . . . . . . . . . . . . . . . Scanalyzers 20 | . . . . . 4 10 . . . . . 2 . . . . . . . . . . . . . 3 1 . Garrison Access 10 | . . . . . . 1 . . . . . 2 1 . . . . . . . . 1 . 3 . . 2 . Terminal Hacks 105 | . 5 1 5 . 6 13 . 1 . . 1 6 2 . . 18 . 4 11 1 . 10 1 17 . . 3 . Record 11 | . . . 4 . . . . . . . 1 . . . . 6 . . . . . . . . . . . . Part Schematic 6 | . . . . . . 1 . . . . . 1 . . . 4 . . . . . . . . . . . . Robot Analysis 13 | . 2 . . . 3 2 . . . . . 1 . . . 4 . . . . . . . 1 . . . . Prototype ID Bank 15 | . 1 . . . . 3 . . . . . . . . . 4 . 1 2 . . 1 . 3 . . . . Open Door 10 | . . 1 . . . . . 1 . . . . . . . . . . 5 1 . . . . . . 2 . Level Access Points 3 | . . . . . . . . . . . . 1 . . . . . . . . . 1 . 1 . . . . Branch Access Points 7 | . . . . . . 1 . . . . . 1 1 . . . . 1 1 . . . 1 1 . . . . Emergency Access Points 2 | . . . . . . . . . . . . . . . . . . . . . . 1 . 1 . . . . Terminal Index 4 | . . . . . . 1 . . . . . . . . . . . 1 . . . 1 . 1 . . . . Garrison Index 1 | . . . . . . 1 . . . . . . . . . . . . . . . . . . . . . . Alert Level 1 | . . . . . . . . . . . . . . . . . . . . . . . . 1 . . . . Unreport Threat 2 | . . . . . . . . . . . . . 1 . . . . . . . . . . 1 . . . . Locate Traps 17 | . 2 . . . 2 3 . . . . . 1 . . . . . 1 2 . . 2 . 3 . . 1 . Reprogram Traps 1 | . . . . . . . . . . . . . . . . . . . . . . 1 . . . . . . Hauler Manifests 1 | . . . . . 1 . . . . . . . . . . . . . . . . . . . . . . . Registered Components 2 | . . . . . . 1 . . . . . . . . . . . . . . . . . 1 . . . . Registered Prototypes 1 | . . . . . . . . . . . . . . . . . . . . . . . . 1 . . . . Zone Layout 7 | . . . . . . . . . . . . 1 . . . . . . 1 . . 3 . 2 . . . . EX-Prototype ID Bank 1 | . . . 1 . . . . . . . . . . . . . . . . . . . . . . . . . Fabricator Hacks 5 | . . . . . . 1 . . . . . 1 1 . . . . . . . . . 1 . . . . 1 Network Status 5 | . . . . . . 1 . . . . . 1 1 . . . . . . . . . 1 . . . . 1 Repair Station Hacks 6 | . 2 . . . 2 . . . . . . . . . . . . 2 . . . . . . . . . . Scan Component 3 | . 1 . . . 1 . . . . . . . . . . . . 1 . . . . . . . . . . Repair 3 | . 1 . . . 1 . . . . . . . . . . . . 1 . . . . . . . . . . Recycling Unit Hacks 5 | . 2 . . . 1 1 . . . . . 1 . . . . . . . . . . . . . . . . Retrieve Components 5 | . 2 . . . 1 1 . . . . . 1 . . . . . . . . . . . . . . . . Scanalyzer 16 | . . . . . 4 10 . . . . . 2 . . . . . . . . . . . . . . . . Insert Component 8 | . . . . . 2 5 . . . . . 1 . . . . . . . . . . . . . . . . Analyze 8 | . . . . . 2 5 . . . . . 1 . . . . . . . . . . . . . . . . Garrison Access Hacks 1 | . . . . . . . . . . . . . . . . . . . . . . . . 1 . . . . Seal Access 1 | . . . . . . . . . . . . . . . . . . . . . . . . 1 . . . . Unauthorized Hacks 42 | . 5 . . . 4 5 . . . . . 8 2 . . . . 3 3 . . 4 1 5 . . 2 . Terminals 23 | . 3 . . . 1 2 . . . . . 2 . . . . . 3 3 . . 3 . 5 . . 1 . Assimilate 1 | . . . . . . . . . . . . . . . . . . . . . . . . 1 . . . . Botnet 16 | . 2 . . . 1 2 . . . . . 2 . . . . . 2 1 . . 2 . 3 . . 1 . Disrupt 1 | . . . . . . . . . . . . . . . . . . . 1 . . . . . . . . . Operators 5 | . 1 . . . . . . . . . . . . . . . . 1 1 . . 1 . 1 . . . . Fabricators 4 | . . . . . . 2 . . . . . . 1 . . . . . . . . . 1 . . . . . Haulers 4 | . . . . . . 2 . . . . . . 1 . . . . . . . . . 1 . . . . . Repair Stations . | . . . . . . . . . . . . . . . . . . . . . . . . . . . . . Recycling Units 9 | . 2 . . . 3 . . . . . . 4 . . . . . . . . . . . . . . . . Reject 2 | . . . . . 1 . . . . . . 1 . . . . . . . . . . . . . . . . Recyclers 2 | . . . . . 1 . . . . . . 1 . . . . . . . . . . . . . . . . Mask 5 | . 2 . . . 1 . . . . . . 2 . . . . . . . . . . . . . . . . Scanalyzers 1 | . . . . . . . . . . . . . . . . . . . . . . . . . . . 1 . Researchers 1 | . . . . . . . . . . . . . . . . . . . . . . . . . . . 1 . Garrison Access 5 | . . . . . . 1 . . . . . 2 1 . . . . . . . . 1 . . . . . . Decoy 1 | . . . . . . . . . . . . 1 . . . . . . . . . . . . . . . . Watchers 3 | . . . . . . 1 . . . . . 1 . . . . . . . . . 1 . . . . . . Jam 1 | . . . . . . . . . . . . . 1 . . . . . . . . . . . . . . . Data Cores Recovered 1 | . . . . . . . . . . . . . . . . . . . . . . . . . 1 . . . Used . | . . . . . . . . . . . . . . . . . . . . . . . . . . . . . Hacking Detections 76 | . 8 . . . 7 13 . . . . . 11 3 . . . . 3 6 1 . 7 2 8 1 2 3 1 Full Trace Events 5 | . 1 . . . 1 1 . . . . . . . . . . . . 1 . . . . . . . 1 . Feedback Events 1 | . . . . . 1 . . . . . . . . . . . . . . . . . . . . . . . Corruption 1 | . . . . . 1 . . . . . . . . . . . . . . . . . . . . . . . Feedback Blocked . | . . . . . . . . . . . . . . . . . . . . . . . . . . . . . Robot Schematics Acquired 6 | . . . . . . . . . 4 . . . . . . . . . . . . . . . . . 2 . Robots Built . | . . . . . . . . . . . . . . . . . . . . . . . . . . . . . Authchips . | . . . . . . . . . . . . . . . . . . . . . . . . . . . . . Time . | . . . . . . . . . . . . . . . . . . . . . . . . . . . . . Total Robot Build Rating . | . . . . . . . . . . . . . . . . . . . . . . . . . . . . . Part Schematics Acquired 35 | . . . . . 1 6 . . 14 . . 2 . . . 4 . . . . . . . . . . 8 . Parts Built . | . . . . . . . . . . . . . . . . . . . . . . . . . . . . . Authchips . | . . . . . . . . . . . . . . . . . . . . . . . . . . . . . Time . | . . . . . . . . . . . . . . . . . . . . . . . . . . . . . Total Part Build Rating . | . . . . . . . . . . . . . . . . . . . . . . . . . . . . . Parts Repaired 3 | . 1 . . . 1 . . . . . . . . . . . . 1 . . . . . . . . . . Time 96 | . 26 . . . 32 . . . . . . . . . . . . 38 . . . . . . . . . . Parts Recycled . | . . . . . . . . . . . . . . . . . . . . . . . . . . . . . Recycled Matter . | . . . . . . . . . . . . . . . . . . . . . . . . . . . . . Retrieved Matter . | . . . . . . . . . . . . . . . . . . . . . . . . . . . . . Retrieved Components 18 | . 4 . . . 10 4 . . . . . . . . . . . . . . . . . . . . . . Parts Scanalyzed 7 | . . . . . 1 5 . . . . . 1 . . . . . . . . . . . . . . . . Part Schematics Acquired 7 | . . . . . 1 5 . . . . . 1 . . . . . . . . . . . . . . . . Parts Damaged . | . . . . . . . . . . . . . . . . . . . . . . . . . . . . . Bothacking | -11 -10 -10 -10 -9 -8 -7 -7 -7 -7 -7 -6 -6 -5 -5 -5 -5 -4 -4 -4 -4 -4 -4 -3 -3 -2 -2 -2 -1 ------------ Run | Scr Mat Min Exi Min Mat Fac Low Low Zio Dee Pro Fac Fac Upp Upp Zhi Pro Fac Ext Cet Arc Hub Res Qua Res Tes Sec Acc Used RIF Installer . | . . . . . . . . . . . . . . . . . . . . . . . . . . . . . Robots Hacked . | . . . . . . . . . . . . . . . . . . . . . . . . . . . . . Non-combat . | . . . . . . . . . . . . . . . . . . . . . . . . . . . . . Combat . | . . . . . . . . . . . . . . . . . . . . . . . . . . . . . Robot Hacks Applied . | . . . . . . . . . . . . . . . . . . . . . . . . . . . . . Relay Couplers Released 2 | . . . . . . . . . . . . . . . . . . . . . . . . . . . 2 . Machine Destruction 2 | . . . . . . . . . . . . . . . . . . . . . . . . . . . 2 . Fabnet Peak Effective % . | . . . . . . . . . . . . . . . . . . . . . . . . . . . . . Robots Rewired 12 | . . . . . . . 2 . . . . . . . . . . . 10 . . . . . . . . . Allies Hacked . | . . . . . . . . . . . . . . . . . . . . . . . . . . . . . Hacks Repelled . | . . . . . . . . . . . . . . . . . . . . . . . . . . . . . Allies | -11 -10 -10 -10 -9 -8 -7 -7 -7 -7 -7 -6 -6 -5 -5 -5 -5 -4 -4 -4 -4 -4 -4 -3 -3 -2 -2 -2 -1 -------- Run | Scr Mat Min Exi Min Mat Fac Low Low Zio Dee Pro Fac Fac Upp Upp Zhi Pro Fac Ext Cet Arc Hub Res Qua Res Tes Sec Acc Total Allies 55 | . . . . . . . 2 . 5 . . . . . . . . . 20 5 . . . . . . 3 20 Largest Group 13 | . . . . . . . 1 1 6 6 . . . . . . . . 13 9 6 5 . . . . 3 12 Highest-Rated Group 706 | . . . . . . . 31 31 296 296 . . . . . . . . 625 706 514 380 . . . . 138 172 Highest-Rated Ally 159 | . . . . . . . 31 31 96 96 . . . . . . . . 159 144 134 96 . . . . 46 15 Total Orders 5 | . . . . . . . . 2 . . . . . . . . . . 2 . . 1 . . . . . . STAY 4 | . . . . . . . . 1 . . . . . . . . . . 2 . . 1 . . . . . . FOLLOW 1 | . . . . . . . . 1 . . . . . . . . . . . . . . . . . . . . Ally Attacks 407 | . . . . . . . . 13 . 124 . . . . . . . . 68 70 27 56 . . . . 1 48 Total Damage 9616 | . . . . . . . . 168 . 1819 . . . . . . . . 1986 1250 955 2442 . . . . 22 974 Kills 57 | . . . . . . . . 1 . 17 . . . . . . . . 13 7 2 11 . . . . . 6 Allies Corrupted 1 | . . . . . . . . . . . . . . . . . . . 1 . . . . . . . . . Allies Melted . | . . . . . . . . . . . . . . . . . . . . . . . . . . . . . Intel | -11 -10 -10 -10 -9 -8 -7 -7 -7 -7 -7 -6 -6 -5 -5 -5 -5 -4 -4 -4 -4 -4 -4 -3 -3 -2 -2 -2 -1 ------- Run | Scr Mat Min Exi Min Mat Fac Low Low Zio Dee Pro Fac Fac Upp Upp Zhi Pro Fac Ext Cet Arc Hub Res Qua Res Tes Sec Acc Robot Analysis Total 13 | . 2 . . . 3 2 . . . . . 1 . . . 4 . . . . . . . 1 . . . . Derelict Logs Recovered 14 | . . 1 . 3 . . 2 . 1 . 3 . . 2 1 . 1 . . . . . . . . . . . Drone Launches . | . . . . . . . . . . . . . . . . . . . . . . . . . . . . . Drone Recoveries . | . . . . . . . . . . . . . . . . . . . . . . . . . . . . . Exploration | -11 -10 -10 -10 -9 -8 -7 -7 -7 -7 -7 -6 -6 -5 -5 -5 -5 -4 -4 -4 -4 -4 -4 -3 -3 -2 -2 -2 -1 ------------- Run | Scr Mat Min Exi Min Mat Fac Low Low Zio Dee Pro Fac Fac Upp Upp Zhi Pro Fac Ext Cet Arc Hub Res Qua Res Tes Sec Acc Turns Passed 41255 | 114 1134 1215 1053 1399 2881 2539 1871 1757 1639 4031 1661 1737 1401 1906 1467 773 1242 700 1394 364 542 945 759 1457 1749 799 1985 741 Spaces Moved 19197 | 48 467 408 436 561 970 1113 990 980 925 2377 1290 904 465 896 704 178 651 300 481 106 59 454 285 579 643 316 1043 568 Core 18 | 13 . . . . . . . . . . . 1 4 . . . . . . . . . . . . . . . Treads 2554 | 35 467 408 436 561 641 . . . . 6 . . . . . . . . . . . . . . . . . . Legs 7725 | . . . . . . . . . . 1 . . 461 896 704 178 651 300 481 106 59 454 285 579 643 316 1043 568 Wheels 8900 | . . . . . 329 1113 990 980 925 2370 1290 903 . . . . . . . . . . . . . . . . Hover . | . . . . . . . . . . . . . . . . . . . . . . . . . . . . . Flight . | . . . . . . . . . . . . . . . . . . . . . . . . . . . . . Fastest Speed 30 | 50 160 240 240 240 145 120 160 175 175 100 115 130 180 180 180 150 180 180 180 180 180 180 180 183 180 180 30 30 Average Speed 165 | 130 186 240 240 240 210 149 174 175 175 135 115 132 202 183 180 151 180 180 180 180 180 180 194 184 192 180 124 30 Slowest Speed 1300 | 160 240 240 240 240 240 160 175 175 175 410 115 1300 1300 240 180 180 180 180 240 180 180 180 226 240 330 180 187 30 Overloaded Moves . | . . . . . . . . . . . . . . . . . . . . . . . . . . . . . Propulsion Burnouts . | . . . . . . . . . . . . . . . . . . . . . . . . . . . . . Robots Hopped . | . . . . . . . . . . . . . . . . . . . . . . . . . . . . . Cave-ins Triggered . | . . . . . . . . . . . . . . . . . . . . . . . . . . . . . Teleports 3 | . . . . . . . . . . . . . . . . . . . . . . . . . . 1 2 . Exploration Rate (%) 61 | 3 65 99 70 85 67 32 98 96 85 94 93 26 14 98 70 61 84 10 62 76 81 53 11 85 21 49 65 18 Regions Visited 28 Branch Regions 19 Pre-discovered Areas 12 | . . . 1 2 . . 2 . . . 1 . . 2 . 3 1 . . . . . . . . . . . Known Exits Taken 24 | . . . 1 . 1 1 1 1 1 1 1 1 1 1 1 1 1 1 1 1 1 1 1 1 1 1 1 . Unknown Exits Taken 4 | 1 1 1 . 1 . . . . . . . . . . . . . . . . . . . . . . . . Scrap Searched 18 | . . 1 . 1 . . 4 2 3 . 1 . . 3 1 . 2 . . . . . . . . . . . Spaces Dug 152 | . . 9 . . 5 13 37 . . 1 . 11 6 . . . . . 13 . . 7 4 13 3 7 10 13 Terrain Destroyed 1307 | . 8 44 . 57 80 26 115 75 . 49 10 32 142 7 18 . 9 6 32 2 3 353 23 61 33 16 60 46 Melee 12 | . . . . . . 12 . . . . . . . . . . . . . . . . . . . . . . Projectile 412 | . . . . . 20 1 6 1 . 9 10 32 31 7 18 . 9 6 32 2 3 19 23 33 33 16 55 46 AOE 878 | . 8 44 . 57 60 13 109 74 . 40 . . 111 . . . . . . . . 334 . 28 . . . . Terrain Rammed . | . . . . . . . . . . . . . . . . . . . . . . . . . . . . . Walls Destroyed . | . . . . . . . . . . . . . . . . . . . . . . . . . . . . . Machines Disabled . | . . . . . . . . . . . . . . . . . . . . . . . . . . . . . Actions | -11 -10 -10 -10 -9 -8 -7 -7 -7 -7 -7 -6 -6 -5 -5 -5 -5 -4 -4 -4 -4 -4 -4 -3 -3 -2 -2 -2 -1 --------- Run | Scr Mat Min Exi Min Mat Fac Low Low Zio Dee Pro Fac Fac Upp Upp Zhi Pro Fac Ext Cet Arc Hub Res Qua Res Tes Sec Acc Total 26447 | 90 652 640 447 589 1578 1858 1080 1001 946 3037 1439 1363 773 1120 814 688 676 394 913 258 464 528 407 844 1012 481 1457 898 Wait 4678 | 19 109 215 . 4 389 591 13 4 6 365 121 365 154 193 46 479 3 47 267 133 361 45 51 122 193 97 144 142 Move 19170 | 47 466 407 435 560 969 1112 989 979 924 2376 1289 903 465 895 703 177 650 299 480 105 58 453 284 578 642 315 1042 568 Hop . | . . . . . . . . . . . . . . . . . . . . . . . . . . . . . Pick Up 310 | 13 19 5 4 4 31 22 15 3 5 61 4 12 13 6 3 1 . . 7 2 7 . 12 10 14 6 27 4 Fast Attach 105 | . 1 . . . 7 3 . . . 11 2 . 1 . 5 9 . 6 5 2 1 . 4 9 16 . 19 4 Attach 106 | 6 1 . . 2 13 8 5 . 4 12 . 1 9 . 2 . . . . . . 1 1 5 8 6 17 5 Detach 41 | . . . . . . 1 2 . . 4 . 1 2 . . . . . 2 . 1 . 2 6 6 2 7 5 Swap 219 | . 7 2 1 1 17 20 1 2 1 20 . 15 6 2 1 . . . 6 1 3 2 9 29 32 16 23 2 Drop 349 | . 7 5 7 2 25 18 10 5 5 60 7 11 16 5 3 22 . 6 12 4 9 . 6 24 36 7 28 9 Fire 1182 | 5 42 6 . 16 127 44 18 8 . 128 16 55 102 19 51 . 23 36 51 11 24 27 38 61 65 32 133 44 Melee 141 | . . . . . . 39 3 . 1 . . . . . . . . . . . . . . . . . 6 92 Ram . | . . . . . . . . . . . . . . . . . . . . . . . . . . . . . Kick 11 | . . . . . . . . . . . . . . . . . . . . . . . . . . . 1 10 Crush . | . . . . . . . . . . . . . . . . . . . . . . . . . . . . . Escape Stasis 56 | . . . . . . . . . . . . . 5 . . . . . 28 . . . . . . . 10 13 Rewire 79 | . . . . . . . 24 . . . . . . . . . . . 55 . . . . . . . . . Trap . | . . . . . . . . . . . . . . . . . . . . . . . . . . . . . Miscellaneous . | . . . . . . . . . . . . . . . . . . . . . . . . . . . . . Route ------- -11/Scrapyard -10/Materials (discovered 3 exits: [*Mat x2] / *Min) -10/Mines (discovered 3 exits: [*Mat x2] / *Exi) -10/Exiles (discovered 2 exits: *Min x2) -9/Mines -8/Materials (discovered 2 exits: *Fac / *Sto) -7/Factory (discovered 4 exits: *Fac x2 / *Low x2) -7/Lower Caves -7/Lower Caves (discovered 2 exits: *Fac / *Zio) -7/Zion (discovered 2 exits: *Dee / *Pro) -7/Deep Caves -6/Proximity Caves -6/Factory (discovered 6 exits: *Fac x4 / *Low x2) -5/Factory (discovered 2 exits: *Upp x2) -5/Upper Caves -5/Upper Caves -5/Zhirov -4/Proximity Caves -4/Factory (discovered 4 exits: *Upp x2 / *Ext x2) -4/Extension (discovered 2 exits: *Res / *Cet) -4/Cetus -4/Archives (discovered 2 exits: *Hub x2) -4/Hub_04(d) (discovered 4 exits: *Res x4) -3/Research (discovered 3 exits: Arm / *Qua x2) -3/Quarantine -2/Research (discovered 2 exits: *Acc / *Tes) -2/Testing (discovered 2 exits: *Acc / *Sec) -2/Section 7 -1/Access To Fleet Rendezvous History --------- Turn | Location | Event 10 | -11/Scrapyard | Discovered new exit (range 16) 115 | -11/Scrapyard | Entered Materials 306 | -10/Materials | Build established: Mutant 467 | -10/Materials | Discovered new exit (range 13) 706 | -10/Materials | Repaired Ion Engine 815 | -10/Materials | Discovered new exit (range 3) 833 | -10/Materials | Central database locked down 899 | -10/Materials | Core integrity fell below 50% 952 | -10/Materials | Discovered new exit (range 9) 1249 | -10/Materials | Entered Mines 1282 | -10/Mines | Met a Derelict who couldn't figure out how to use a Trap Extractor 1681 | -10/Mines | Discovered new exit (range 14) 2089 | -10/Mines | Discovered new exit (range 4) 2270 | -10/Mines | Found a hidden stash of uninstalled traps 2337 | -10/Mines | Deemed a non-threat by the Exiles lab entrance 2337 | -10/Mines | Discovered new exit (range 5) 2464 | -10/Mines | Entered Exiles 2465 | -10/Exiles | Identified exit to Mines 2522 | -10/Exiles | Met 8R-AWN 2563 | -10/Exiles | Met EX-HEX 2637 | -10/Exiles | Met EX-BIN 2668 | -10/Exiles | Met EX-DEC 2678 | -10/Exiles | Learned location of Zion (-7) 2750 | -10/Exiles | Aligned with FarCom system 2752 | -10/Exiles | Given EX-Vault access code 2808 | -10/Exiles | Opened EX-Vault 2828 | -10/Exiles | Found Lightpack 2.0 2834 | -10/Exiles | Found Latent Energy Streamer 2841 | -10/Exiles | Found YOLO Cannon 2890 | -10/Exiles | Warned to stay clear of 0b10 Research branches 3517 | -10/Exiles | Stole three prototypes: Lightpack 2.0, Latent Energy Streamer, YOLO Cannon 3517 | -10/Exiles | Entered Mines 3518 | -9/Mines | Met a Derelict bent on vengeance 4140 | -9/Mines | Discovered new exit (range 5) 4462 | -9/Mines | Learned Materials garrison access intel 4916 | -9/Mines | Entered Materials 4916 | -8/Materials | Evolved 4 slots: Utility x4 4917 | -8/Materials | Loaded intel: 1 garrison access location 5006 | -8/Materials | Discovered new exit (range 16) 5247 | -8/Materials | Lost 3 parts (2n1u) 5293 | -8/Materials | Identified exit to Storage 5379 | -8/Materials | Build established: Scavenger-Mutant 5644 | -8/Materials | Lost 3 parts (1p2u) 5962 | -8/Materials | Build established: Mutant 6256 | -8/Materials | Discovered new exit (range 5) 6263 | -8/Materials | Identified exit to Factory 6302 | -8/Materials | Central database locked down 7313 | -8/Materials | Repaired Imp. Treads 7716 | -8/Materials | First assault squad dispatched 7797 | -8/Materials | Entered Factory 7797 | -7/Factory | Evolved 2 slots: Utility x2 7799 | -7/Factory | FarCom data flow suspended 8607 | -7/Factory | Build established: Scavenger-Skirmisher 8674 | -7/Factory | Lost 3 parts (1p1n1w) 8932 | -7/Factory | Discovered new exit (range 5) 8937 | -7/Factory | Identified exit to Factory 9045 | -7/Factory | Build established: Scavenger-Assassin 9075 | -7/Factory | Identified exit to Lower Caves 9931 | -7/Factory | Discovered exit to Factory (range 7) 10135 | -7/Factory | Found Prototype Launcher 10138 | -7/Factory | Found Prototype Launcher 10206 | -7/Factory | Identified Rocket Array (x2) 10274 | -7/Factory | Build established: Scavenger-Skirmisher 10336 | -7/Factory | Entered Lower Caves 10336 | -7/Lower Caves | Spotted 8U-CYF(f) 10336 | -7/Lower Caves | Spotted 8P-Z8J(f) 10337 | -7/Lower Caves | Encountered a Master Thief 10337 | -7/Lower Caves | Encountered a Master Thief 10337 | -7/Lower Caves | Spotted W9-RO8(f) 10338 | -7/Lower Caves | Encountered a Master Thief 10345 | -7/Lower Caves | Minigun stolen by Master Thief 10349 | -7/Lower Caves | Adv. Heat Sink stolen by Master Thief 10353 | -7/Lower Caves | Hrd. Heavy Armor Plating stolen by Master Thief 10762 | -7/Lower Caves | Attracted the attention of an 0b10 outpost 10805 | -7/Lower Caves | Destroyed 8 combat bots 11947 | -7/Lower Caves | Discovered new exit (range 13) 11974 | -7/Lower Caves | Identified exit to Lower Caves 12207 | -7/Lower Caves | Entered another Lower Caves area 12207 | -7/Lower Caves | Accompanied by 1 ally 12336 | -7/Lower Caves | Discovered exit to Factory (range 16) 13026 | -7/Lower Caves | Discovered new exit (range 7) 13584 | -7/Lower Caves | Identified exit to Zion 13964 | -7/Lower Caves | Entered Zion 13964 | -7/Zion | Accompanied by 1 ally 14117 | -7/Zion | Received a hallucinogenic algorithm 14130 | -7/Zion | Discovered new exit (range 10) 14158 | -7/Zion | Identified exit to Proximity Caves 14189 | -7/Zion | Given A8's code to call for help 14256 | -7/Zion | Gained Derelict followers 14336 | -7/Zion | Build established: Scavenger-Assassin 14406 | -7/Zion | Learned Factory emergency access door positions 14521 | -7/Zion | Found Prototype Device 14614 | -7/Zion | Identified Mobile Refinery Mk. CCLXVII 14693 | -7/Zion | Acquired unknown access codes intercepted by a Zionite 14810 | -7/Zion | Build established: Scavenger-Mutant 14884 | -7/Zion | Learned Factory stockpile data 15017 | -7/Zion | Given the Hacking Drone Bay 15549 | -7/Zion | Opened final containment barrier to the Deep Caves 15569 | -7/Zion | Enhanced Grunt warped into view, answering call for help 15576 | -7/Zion | Enhanced Grunt warped into view, answering call for help 15582 | -7/Zion | Discovered new exit (range 3) 15582 | -7/Zion | Saw the warning signs outside the Deep Caves entrance 15586 | -7/Zion | Identified exit to Deep Caves 15603 | -7/Zion | Entered Deep Caves 15603 | -7/Deep Caves | Accompanied by 6 allies 15937 | -7/Deep Caves | Z-Facility disabled 15991 | -7/Deep Caves | Attacked by Z-Imprinter 16001 | -7/Deep Caves | Allies destroyed Z-Imprinter 16045 | -7/Deep Caves | Found Prototype Device 16052 | -7/Deep Caves | Found Prototype Protection 16119 | -7/Deep Caves | Identified Zio. Metafield Generator 16164 | -7/Deep Caves | Build established: Mutant 16172 | -7/Deep Caves | Identified Zio. Weapon Casing 16582 | -7/Deep Caves | Found Prototype Protection 16601 | -7/Deep Caves | Build established: Scavenger-Mutant 16772 | -7/Deep Caves | Discovered new exit (range 6) 16781 | -7/Deep Caves | Identified exit to Proximity Caves 17221 | -7/Deep Caves | Found Zio. Weapon Casing 17224 | -7/Deep Caves | Found Zio. Weapon Casing 17232 | -7/Deep Caves | Found Zio. Weapon Casing 17239 | -7/Deep Caves | Found Zio. Weapon Casing 17394 | -7/Deep Caves | Spotted as-03560 17416 | -7/Deep Caves | Destroyed as-03560 17462 | -7/Deep Caves | Spotted as-23092 17497 | -7/Deep Caves | Core integrity fell below 50% 17502 | -7/Deep Caves | Destroyed as-23092 17531 | -7/Deep Caves | Lost 5 parts (1p1n3u) 17608 | -7/Deep Caves | Identified Zio. Heavy Carapace 17782 | -7/Deep Caves | Build established: Mutant 18277 | -7/Deep Caves | Triggered Deep Caves wall 18277 | -7/Deep Caves | Spotted AS-32005 18277 | -7/Deep Caves | Spotted AS-53339 18278 | -7/Deep Caves | Destroyed AS-53339 18287 | -7/Deep Caves | Destroyed AS-32005 18310 | -7/Deep Caves | Destroyed 36 combat bots 18484 | -7/Deep Caves | Found Surveybot 24 Scanner 18700 | -7/Deep Caves | Build established: Hauler-Mutant 18853 | -7/Deep Caves | Exposed GOLEM chamber 18856 | -7/Deep Caves | Found GOLEM Unit 18860 | -7/Deep Caves | Found GOLEM Unit 18875 | -7/Deep Caves | Found GOLEM Unit 18880 | -7/Deep Caves | Found GOLEM Unit 18884 | -7/Deep Caves | Found GOLEM Unit 18888 | -7/Deep Caves | Found GOLEM Unit 18892 | -7/Deep Caves | Found GOLEM Unit 18896 | -7/Deep Caves | Found GOLEM Unit 18964 | -7/Deep Caves | Found GOLEM Unit 18970 | -7/Deep Caves | Found GOLEM Unit 18975 | -7/Deep Caves | Found GOLEM Unit 19018 | -7/Deep Caves | Found GOLEM Unit 19022 | -7/Deep Caves | Found GOLEM Unit 19041 | -7/Deep Caves | Found GOLEM Unit 19045 | -7/Deep Caves | Found GOLEM Unit 19050 | -7/Deep Caves | Found GOLEM Unit 19064 | -7/Deep Caves | Found Superbattery 19079 | -7/Deep Caves | Found GOLEM Unit 19166 | -7/Deep Caves | Found GOLEM Unit 19171 | -7/Deep Caves | Found GOLEM Unit 19340 | -7/Deep Caves | Build established: Hauler-Golem 19553 | -7/Deep Caves | Found GOLEM Unit 19634 | -7/Deep Caves | Entered Proximity Caves 19674 | -6/Proximity Caves | Found Alien Artifact 19674 | -6/Proximity Caves | Identified Dimensional Node Initializer 19674 | -6/Proximity Caves | Initialized slip node 20167 | -6/Proximity Caves | Encountered a Derelict sapper outpost 20648 | -6/Proximity Caves | Learned Factory interactive machine intel 20823 | -6/Proximity Caves | Discovered exit to Factory (range 13) 21169 | -6/Proximity Caves | Learned Factory stockpile data 21295 | -6/Proximity Caves | Entered Factory 21295 | -6/Factory | Evolved 2 slots: Power x1, Utility x1 21298 | -6/Factory | Loaded intel: 52 interactive machine locations 21866 | -6/Factory | Identified exit to Lower Caves 21872 | -6/Factory | Spotted B-75 Beast 22608 | -6/Factory | Identified exit to Factory 23032 | -6/Factory | Entered another Factory area 23032 | -5/Factory | Evolved 2 slots: Utility x2 23378 | -5/Factory | Identified exit to Upper Caves 23609 | -5/Factory | Destroyed 7 combat bots 23831 | -5/Factory | Lost 4 parts (1n3u) 23932 | -5/Factory | First assault squad dispatched 24433 | -5/Factory | Entered Upper Caves 24434 | -5/Upper Caves | Encountered a Warlord checkpoint 24509 | -5/Upper Caves | Learned location of Armory (-3) 24533 | -5/Upper Caves | Attracted the attention of an 0b10 checkpoint 26146 | -5/Upper Caves | Discovered new exit (range 14) 26170 | -5/Upper Caves | Identified exit to Upper Caves 26339 | -5/Upper Caves | Entered another Upper Caves area 27099 | -5/Upper Caves | Spotted IR-KBV(f) 27099 | -5/Upper Caves | Spotted EI-JIV(f) 27100 | -5/Upper Caves | Encountered a Master Thief 27100 | -5/Upper Caves | Encountered a Master Thief 27101 | -5/Upper Caves | Spotted PY-WMD(f) 27102 | -5/Upper Caves | Encountered a Master Thief 27103 | -5/Upper Caves | Spotted H6-6C1(f) 27104 | -5/Upper Caves | Encountered a Master Thief 27104 | -5/Upper Caves | Latent Energy Streamer stolen by Master Thief 27105 | -5/Upper Caves | Superbattery stolen by Master Thief 27105 | -5/Upper Caves | Lightpack 2.0 stolen by Master Thief 27133 | -5/Upper Caves | Destroyed IR-KBV(f) 27150 | -5/Upper Caves | Lost 3 parts (3u) 27404 | -5/Upper Caves | Build established: Golem 27724 | -5/Upper Caves | Discovered new exit (range 7) 27805 | -5/Upper Caves | Identified exit to Zhirov 27806 | -5/Upper Caves | Entered Zhirov 27808 | -5/Zhirov | Discovered new exit (range 3) 27827 | -5/Zhirov | Identified exit to Proximity Caves 27850 | -5/Zhirov | Met Zhirov 27883 | -5/Zhirov | Learned location of Quarantine (-3) 27883 | -5/Zhirov | Learned location of Testing (-2) 27883 | -5/Zhirov | Learned location of Command (-1) 27892 | -5/Zhirov | Zhirov requested help retrieving the SGEMP Prototype 27921 | -5/Zhirov | Found Alien Artifact 27921 | -5/Zhirov | Identified Integrated Reactor 27921 | -5/Zhirov | Installed Integrated Reactor, increased core energy generation (+10) 27995 | -5/Zhirov | Found Alien Artifact 28579 | -5/Zhirov | Entered Proximity Caves 29234 | -4/Proximity Caves | Core integrity fell below 50% 29467 | -4/Proximity Caves | Spotted B-86 Titan 29553 | -4/Proximity Caves | Discovered new exit (range 18) 29580 | -4/Proximity Caves | Identified exit to Factory 29821 | -4/Proximity Caves | Entered Factory 29821 | -4/Factory | Evolved 2 slots: Power x1, Propulsion x1 29822 | -4/Factory | Identified exit to Upper Caves 29876 | -4/Factory | Repaired Imp. Sensor Array? 30119 | -4/Factory | Build established: Generator-Golem 30345 | -4/Factory | Identified exit to Extension 30521 | -4/Factory | Entered Extension 30747 | -4/Extension | Rescued a captive Derelict 30747 | -4/Extension | Rescued a captive Derelict 30921 | -4/Extension | Found Quantum Capacitor 30985 | -4/Extension | Rescued a captive Derelict 31069 | -4/Extension | Rescued a captive Derelict 31218 | -4/Extension | Rescued A7 31231 | -4/Extension | Rescued a captive Derelict 31541 | -4/Extension | Rescued a captive Derelict 31542 | -4/Extension | Rescued a captive Derelict 31610 | -4/Extension | Identified exit to Cetus 31642 | -4/Extension | Rescued a captive Derelict 31646 | -4/Extension | Rescued a captive Derelict 31698 | -4/Extension | Discovered new exit (range 10) 31720 | -4/Extension | Identified exit to Research 31915 | -4/Extension | Entered Cetus 31915 | -4/Cetus | Accompanied by 9 allies (A7) 31920 | -4/Cetus | Acquired a Cetus Manufacturing Module code from A7 31926 | -4/Cetus | Spotted Cetus Guard 31926 | -4/Cetus | Spotted Cetus Guard 31930 | -4/Cetus | Spotted Cetus Guard 31930 | -4/Cetus | Spotted Cetus Guard 31941 | -4/Cetus | Destroyed Cetus Guard 31950 | -4/Cetus | Allies destroyed Cetus Guard 31953 | -4/Cetus | Allies destroyed Cetus Guard 31961 | -4/Cetus | Allies destroyed Cetus Guard 32146 | -4/Cetus | Started Cetus Manufacturing Module 32158 | -4/Cetus | Escorted A7 to Cetus Mainframe 32166 | -4/Cetus | Discovered new exit (range 21) 32171 | -4/Cetus | Manufactured an Enhanced Grunt 32196 | -4/Cetus | Manufactured an Enhanced Grunt 32202 | -4/Cetus | Identified exit to Archives 32221 | -4/Cetus | Manufactured an Enhanced Grunt 32246 | -4/Cetus | Manufactured an Enhanced Grunt 32271 | -4/Cetus | Manufactured an Enhanced Grunt 32279 | -4/Cetus | Entered Archives 32279 | -4/Archives | Accompanied by 6 allies (A7) 32284 | -4/Archives | Received a hacking code to weaken MAIN.C 32335 | -4/Archives | Discovered new exit (range 22) 32407 | -4/Archives | Discovered new exit (range 22) 32443 | -4/Archives | Identified exit to Hub_04(d) 32821 | -4/Archives | Entered Hub_04(d) 32821 | -4/Hub_04(d) | Accompanied by 5 allies 33703 | -4/Hub_04(d) | Network Hub disabled 33725 | -4/Hub_04(d) | Spotted Lightning 33763 | -4/Hub_04(d) | Network Hub disabled 33763 | -4/Hub_04(d) | Spotted Lightning 33763 | -4/Hub_04(d) | Spotted Lightning 33766 | -4/Hub_04(d) | Spotted Lightning 33766 | -4/Hub_04(d) | Entered Research 33766 | -3/Research | Evolved 2 slots: Propulsion x1, Weapon x1 33777 | -3/Research | Identified exit to Armory 33777 | -3/Research | Identified exit to Quarantine 34158 | -3/Research | Garrison activated, responded to threat 34348 | -3/Research | Garrison activated, responded to threat 34525 | -3/Research | Entered Quarantine 34552 | -3/Quarantine | Cryocooling Duct disabled 34567 | -3/Quarantine | Ambient heat levels rising (+20) 34567 | -3/Quarantine | Non-combat units ordered to evacuate 34730 | -3/Quarantine | System corruption reached 10% 35114 | -3/Quarantine | Identified exit to Research 35141 | -3/Quarantine | Found Alien Artifact 35141 | -3/Quarantine | Identified Core Reset Matrix 35141 | -3/Quarantine | Identified Transdimensional Reconstructor 35141 | -3/Quarantine | Used Core Reset Matrix 35145 | -3/Quarantine | Detected hypermatrix surge 35145 | -3/Quarantine | Sensed 5 artifacts in vicinity 35222 | -3/Quarantine | Found Phase Armor 35374 | -3/Quarantine | Found Sigix Broadsword 35525 | -3/Quarantine | First assault squad dispatched 35665 | -3/Quarantine | Destroyed 8 combat bots 35734 | -3/Quarantine | Found Unknown Device 35734 | -3/Quarantine | Identified Antimissile System 35936 | -3/Quarantine | Discovered exit to Research (range 10) 35982 | -3/Quarantine | Entered Research 35982 | -2/Research | Evolved 2 slots: Propulsion x2 36926 | -2/Research | Discovered new exit (range 4) 36933 | -2/Research | Identified exit to Access 37662 | -2/Research | Discovered new exit (range 11) 37691 | -2/Research | Identified exit to Testing 37731 | -2/Research | Entered Testing 37773 | -2/Testing | Found Prototype Device 37774 | -2/Testing | Identified AEGIS Remote Shield 37935 | -2/Testing | Found Prototype Launcher 37973 | -2/Testing | Found Prototype Ballistic Gun 38028 | -2/Testing | First assault squad dispatched 38189 | -2/Testing | Spotted Alpha 7 38194 | -2/Testing | Spotted PH-2WSD9CWW1Q 38235 | -2/Testing | Destroyed PH-2WSD9CWW1Q 38267 | -2/Testing | Warped through subspace 38267 | -2/Testing | Discovered exit to Access (range 13) 38268 | -2/Testing | Core integrity fell below 50% 38290 | -2/Testing | Lost 3 parts (3u) 38301 | -2/Testing | Found Prototype Energy Cannon 38302 | -2/Testing | Identified Hyp. Multirail 38309 | -2/Testing | Identified Hpw. Disruptor Cannon 38324 | -2/Testing | Identified Point Singularity Launcher 38400 | -2/Testing | Spotted Fortress 38523 | -2/Testing | Discovered new exit (range 5) 38528 | -2/Testing | Identified exit to Section 7 38530 | -2/Testing | Entered Section 7 38531 | -2/Section 7 | Sensed 20 artifacts in vicinity 38556 | -2/Section 7 | Found Core Reset Matrix 38726 | -2/Section 7 | Found Integrated Dissipator 38726 | -2/Section 7 | Installed Integrated Dissipator, increased core heat dissipation (+20) 38778 | -2/Section 7 | Spotted B-90 Cyclops 38806 | -2/Section 7 | First assault squad dispatched 39003 | -2/Section 7 | Found Microwarp Drive 39194 | -2/Section 7 | Spotted S7 Guard 39460 | -2/Section 7 | Destroyed 7 combat bots 39494 | -2/Section 7 | Garrison activated, responded to threat 39535 | -2/Section 7 | Lost 4 parts (1p1u2w) 39720 | -2/Section 7 | Spotted Executioner 39720 | -2/Section 7 | Spotted Executioner 39773 | -2/Section 7 | Destroyed Executioner 39776 | -2/Section 7 | Destroyed Executioner 39815 | -2/Section 7 | Found Prototype Device 39815 | -2/Section 7 | Identified Adv. Kinecellerator 39843 | -2/Section 7 | Found Prototype Processor 39843 | -2/Section 7 | Identified Exp. Core Analyzer 39891 | -2/Section 7 | Found Hpw. Transdimensional Reconstructor 39895 | -2/Section 7 | Found Transdimensional Reconstructor 39898 | -2/Section 7 | Found Transdimensional Reconstructor 39963 | -2/Section 7 | Lost 3 parts (1p2n) 39999 | -2/Section 7 | Spotted Striker 40017 | -2/Section 7 | Scanned by Researcher 40076 | -2/Section 7 | Intercept squad dispatched 40085 | -2/Section 7 | Found Sigix Sheargun 40090 | -2/Section 7 | Found Sigix Sheargun 40101 | -2/Section 7 | Spotted Tracker 40102 | -2/Section 7 | Spotted Tracker 40109 | -2/Section 7 | Destroyed Tracker 40112 | -2/Section 7 | Destroyed Tracker 40117 | -2/Section 7 | Found Prototype Device 40117 | -2/Section 7 | Identified Exp. Phase Shifter 40130 | -2/Section 7 | Found Prototype Processor 40130 | -2/Section 7 | Identified Exp. Targeting Computer 40155 | -2/Section 7 | Spotted Combat Programmer 40155 | -2/Section 7 | Spotted Combat Programmer 40158 | -2/Section 7 | Destroyed Combat Programmer 40168 | -2/Section 7 | Destroyed Combat Programmer 40259 | -2/Section 7 | Spotted Striker 40326 | -2/Section 7 | Spotted Executioner 40326 | -2/Section 7 | Spotted Executioner 40365 | -2/Section 7 | Integrated with Sigix Exoskeleton 40415 | -2/Section 7 | Core integrity fell below 20% 40416 | -2/Section 7 | Warped through subspace 40470 | -2/Section 7 | Warped through subspace 40498 | -2/Section 7 | Allied Derelicts emerged from ambush trap array 40508 | -2/Section 7 | Discovered exit to Access (range 15) 40515 | -2/Section 7 | Entered Access 40515 | -1/Access | Evolved 2 slots: Utility x1, Weapon x1 40520 | -1/Access | Emitted hypermatrix ping 40525 | -1/Access | Assembled emerged from beneath the floor 40658 | -1/Access | Assembled emerged from beneath the floor 40673 | -1/Access | Build established: Alien-Sigix 40678 | -1/Access | Assembled emerged from beneath the floor 40687 | -1/Access | Garrison activated, responded to threat 40765 | -1/Access | First assault squad dispatched 40898 | -1/Access | Discovered new exit (range 18) 41017 | -1/Access | Sigix Exoskeleton integrity reduced to 80% 41018 | -1/Access | Spotted Investigator 41093 | -1/Access | Destroyed Investigator 41095 | -1/Access | Destroyed 18 combat bots 41114 | -1/Access | Spotted Striker 41140 | -1/Access | Sigix Exoskeleton integrity reduced to 60% 41186 | -1/Access | Destroyed 7 combat bots 41204 | -1/Access | Destroyed Striker 41240 | -1/Access | Sigix Exoskeleton integrity reduced to 40% 41256 | -1/Access | Core integrity fell below 50% 41256 | *** | Heading to fleet! Last Messages --------------- 41241_ Stasis bubble strength at 50. 41242_ P-80 Master resets G-73 Enforcer, system corruption cleaned. 41242_ Stasis bubble strength at 35. 41243_ Stasis bubble strength at 20. 41244_ Stasis bubble strength at 5. 41245_ Penetrated by Slug. 41245_ Stasis bubble bursts. 41245_ Kicked G-73 Enforcer out of the way. 41246_ Slug penetrates Main Access Shell. 41247_ Kicked G-73 Enforcer. 41250_ Slug penetrates Main Access Shell. 41250_ Kicked G-73 Enforcer. 41253_ P-80 Master resets G-73 Enforcer, system corruption cleaned. 41253_ Kicked G-73 Enforcer out of the way. 41253_ Slug penetrates Main Access Shell. 41253_ Slug penetrates H-88 Terminator. 41253_ Slug penetrates Main Access Shell. 41254_ ALERT: Heavy assault forces dispatched. 41254_ Kicked G-73 Enforcer. 41256_ Kicked G-73 Enforcer out of the way. Map ----- +----------------------------------------------------+ | ?????????????????????????????????????????????????? | | ?????????????????????????????????????????????????? | | ?????????????????????????????????????????????????? | | ?????????????????????????????????????????????????? | | ?????????????????????????????????????????????????? | | ?????????????????????????????????????????????????? | | ?????????????????????????????????????????????????? | | ?????????????????????????????????????????????????? | | ??????????????????????# ????????????????????????? | | ?????????????????###### ###???????????????????? | | ?????????????? ### ###????????????????? | | ????????????? " ### ####???????????????? | | ??????????? """ ### ######?????????????? | | ?????????? """### #######????????????? | | ????????? " ### BB BB ########???????????? | | ???????? ### BB BB #########??????????? | | ???????# ### #########??????????? | | ???????#############""""""""""##########?????????? | | ??????# ###""""""""""###########????????? | | ????? # ###""""""""""###########????????? | | ????? + "###""""" """"###########?#??#??#? | | ????? # ""### g hg #################### | | ???? # ""###m """%l" #################### | | ???? # ""### "%%g%" #################### | | ???? # ""###bg"%gg%" #################### | | ???? + T"###%="ggXp" #################### | | ???? # ""###gggg=gg"g #################### | | ???# #] ""###=g"""=""/ #################### | | ???? # ""###pgm=%h!!=%########### # | | ???? # ""###!i!%khi=*!########### !! =# | | ???? # "##""""""p"""""########## ! # | | ???? # ###""=kgke%[=########### # | | ???? # ###"%=CC%=[[ ########### # | | ????? ############## "CCC%%*% ########### | # | | ????? ##############T!Ck=%!% ########### # | | ????? ############"" %*k ########### + | | ?????? ########## # = * %%# ######### # | | ??????##############" =%!%[############/####### | | ??????? k [! k%%%% | | ???????? k %%=% Ck * | | ????????######+#############################**#### | | ?????????= ###########################**# | | ????????? ############## #%!# | | ?????????? " ############## = +*!+ | | ???????????""" ############## =#!=# | | ???????????"" ############## * " #!!# | | ???????????? ############## """" #*%# | | ????????????? ############## """"" #%%#! | | ?????????????? ############## """""#!=#!! | | ???????????????################ ! """"!#=!#### | +----------------------------------------------------+ Best States ------------- Heat Dissipation 168 Coolant Potential 100 Energy Generation 99 Energy Capacity 1680 Matter Stores 300 Matter Capacity 300 Sight Range 23 Robot Scan Range 18 Terrain Scan Density 10 ECM Strength 2 Jamming Range 16 Cloak Strength 3 Power Amplification 40 Additional Mass Support 20 Corruption Block 20 Armor Coverage 1200 Resistance: KI 50 Resistance: TH 50 Resistance: EX 50 Resistance: EM 50 Resistance: I 50 Resistance: S 50 Resistance: P 50 Core Shielding 30 Weapon Shielding 100 Weapon Cycling 25 Melee Speed Boost 20 Phase Shifting 20 Evasion (%) 69 Targeting Accuracy 20 Core Analysis 8 Armor Integrity Analysis 40 Recoil Reduction 2 Particle Charging 20 Offensive Hacking 26 Defensive Hacking 14 Authchip Count 1 Item Schematics ----------------- Exp. ECM Suite | -2/Section 7 | Archive Cld. Antigrav System | -2/Section 7 | Archive Adv. Micro-nuke Launcher | -2/Section 7 | Archive Prc. Matter Filter | -2/Section 7 | Archive Stealth Drone Bay | -2/Section 7 | Archive Centrium Light Armor Plating | -2/Section 7 | Archive Quantum Shading Machine | -2/Section 7 | Archive Exp. System Shield | -2/Section 7 | Archive Robot Schematics ------------------ K-01 Serf | -2/Section 7 | Archive C-55 Analyst | -2/Section 7 | Archive Fabricated ------------ Nothing Alien Tech Used ----------------- Dimensional Node Initializer Integrated Reactor Core Reset Matrix Phase Armor Transdimensional Reconstructor Integrated Dissipator Sigix Broadsword Sigix Exoskeleton Sigix Sheargun Achievements -------------- None Challenges ------------ None Game ------ Seed CoreRestorationMatrix Manual? 0 Play Time 09:57:59 Cumulative 185.5 hours Start 2022.06.13 @ 06:33:59 End 2022.06.17 @ 18:54:59 Sessions 33 Manual Loads 0 Difficulty Rogue Special Mode None Game No. 30 Rogue 23 Adventurer 1 Explorer 6 Win Type 2 Total 10 Types 4/1/4/0/0/1/0/0/0 Lore% 76 Gallery% 72 Achievement% 66 Wizard Run 0 Options --------- ASCII 0 Keyboard 0 Movement Mouse Keybinds 0 Fullscreen 1 Font 18/SmallcapsGlow Map View 76x50 Tactical HUD 1 Map Filters NONE Filters NONE Steam 1 RUN: 07aef078-26d7-471d-adc3-a2de15ebbd8f